fUST/lending_fUST_20251006
["ID","MTS","AMOUNT","RATE_DAILY","PERIOD"]
[389553053,1759710669114,-634.6,0.00017808,2]
[389553054,1759710669124,-319.48530615,0.00017808,2]
[389553055,1759710669134,-500.0,0.00017808,2]
[389553056,1759710669144,-500.0,0.00017808,2]
[389553057,1759710669154,-569.32,0.00017808,2]
[389553058,1759710669163,-500.0,0.00017808,2]
[389553059,1759710669173,-500.0,0.00017808,2]
[389553060,1759710669183,-500.0,0.00017808,2]
[389553061,1759710669192,-500.0,0.00017808,2]
[389553062,1759710669202,-500.0,0.00017808,2]
[389553063,1759710669211,-500.0,0.00017808,2]
[389553064,1759710669220,-1416.88,0.00017808,2]
[389553065,1759710669230,-500.0,0.00017808,2]
[389553066,1759710669239,-500.0,0.00017808,2]
[389553067,1759710669249,-524.03,0.00017808,2]
[389553068,1759710669259,-500.0,0.00017808,2]
[389553069,1759710669268,-500.0,0.00017808,2]
[389553070,1759710669277,-500.0,0.00017808,2]
[389553071,1759710669286,-1492.82,0.00017808,2]
[389553072,1759710669295,-1405.52,0.00017808,2]
[389553073,1759710669304,-3841.45,0.00017808,2]
[389553074,1759710669313,-645.51,0.00017808,2]
[389553075,1759710669322,-500.0,0.00017808,2]
[389553076,1759710669332,-1015.09,0.00017808,2]
[389553077,1759710669341,-500.0,0.00017808,2]
[389553078,1759710669349,-901.06,0.00017808,2]
[389553079,1759710669358,-895.39,0.00017808,2]
[389553080,1759710669367,-500.0,0.00017808,2]
[389553081,1759710669376,-945.02,0.00017808,2]
[389553082,1759710669385,-804.75,0.00017808,2]
[389553083,1759710669395,-1239.33,0.00017808,2]
[389553084,1759710669406,-1437.31,0.00017808,2]
[389553085,1759710669415,-500.0,0.00017808,2]
[389553086,1759710669424,-500.0,0.00017808,2]
[389553087,1759710669433,-3369.67,0.00017808,2]
[389553088,1759710669442,-273.58865287,0.00017808,2]
[389553089,1759710669452,-10794.67,0.00017808,2]
[389553090,1759710669461,-563.2,0.00017808,2]
[389553091,1759710669470,-1718.43,0.00017808,2]
[389553092,1759710669479,-500.0,0.00017808,2]
[389553093,1759710669488,-500.0,0.00017808,2]
[389553094,1759710669497,-3482.74,0.00017808,2]
[389553095,1759710669507,-161.21567667,0.00017808,2]
[389553096,1759710669516,-3304.71,0.00017808,2]
[389553097,1759710669525,-2439.53,0.00017808,2]
[389553098,1759710669535,-500.0,0.00017808,2]
[389553099,1759710669544,-1237.3,0.00017808,2]
[389553100,1759710669553,-500.0,0.00017808,2]
[389553101,1759710669562,-529.42,0.00017808,2]
[389553102,1759710669571,-643.24,0.00017808,2]
[389553103,1759710669581,-500.0,0.00017808,2]
[389553104,1759710669591,-500.0,0.00017808,2]
[389553105,1759710669601,-675.1,0.00017808,2]
[389553106,1759710669611,-500.0,0.00017808,2]
[389553107,1759710669620,-500.0,0.00017808,2]
[389553108,1759710669630,-970.08,0.00017808,2]
[389553109,1759710669640,-500.0,0.00017808,2]
[389553110,1759710669649,-500.0,0.00017808,2]
[389553111,1759710669658,-500.0,0.00017808,2]
[389553112,1759710669667,-4225.47,0.00017808,2]
[389553113,1759710669677,-500.0,0.00017808,2]
[389553114,1759710669687,-1256.0,0.00017808,2]
[389553115,1759710669695,-500.0,0.00017808,2]
[389553116,1759710669705,-747.68,0.00017808,2]
[389553117,1759710669714,-1127.29,0.00017808,2]
[389553118,1759710669723,-785.54,0.00017808,2]
[389553119,1759710669733,-1755.26,0.00017808,2]
[389553120,1759710669742,-500.0,0.00017808,2]
[389553121,1759710669751,-500.0,0.00017808,2]
[389553122,1759710669761,-1302.2,0.00017808,2]
[389553123,1759710669770,-791.93,0.00017808,2]
[389553124,1759710669779,-500.0,0.00017808,2]
[389553125,1759710669794,-500.0,0.00017808,2]
[389553126,1759710669805,-500.0,0.00017808,2]
[389553127,1759710669814,-3860.52,0.00017808,2]
[389553128,1759710669823,-500.0,0.00017808,2]
[389553129,1759710669836,-500.0,0.00017808,2]
[389553130,1759710669845,-500.0,0.00017808,2]
[389553131,1759710669855,-500.0,0.00017808,2]
[389553132,1759710669865,-565.09,0.00017808,2]
[389553133,1759710669875,-500.0,0.00017808,2]
[389553134,1759710669886,-500.0,0.00017808,2]
[389553135,1759710669895,-500.0,0.00017808,2]
[389553136,1759710669906,-544.42,0.00017808,2]
[389553137,1759710669915,-568.57,0.00017808,2]
[389553138,1759710669926,-500.0,0.00017808,2]
[389553139,1759710669936,-950.55,0.00017808,2]
[389553140,1759710669946,-7579.73,0.00017808,2]
[389553141,1759710669955,-500.0,0.00017808,2]
[389553142,1759710669964,-2804.59,0.00017808,2]
[389553143,1759710669973,-631.22292966,0.00017808,2]
[389553144,1759710669983,-500.0,0.00017808,2]
[389553145,1759710669993,-878.32,0.00017808,2]
[389553146,1759710670003,-1082.28,0.00017808,2]
[389553147,1759710670013,-10468.81,0.00017808,2]
[389553148,1759710670023,-500.0,0.00017808,2]
[389553149,1759710670034,-1383.8,0.00017808,2]
[389553150,1759710670170,-500.0,0.00017808,2]
[389553151,1759710670183,-580.45,0.00017808,2]
[389553152,1759710670192,-500.0,0.00017808,2]
[389553153,1759710670204,-805.48,0.00017808,2]
[389553154,1759710670214,-500.0,0.00017808,2]
[389553155,1759710670224,-500.0,0.00017808,2]
[389553156,1759710670234,-3339.82,0.00017808,2]
[389553157,1759710670243,-500.0,0.00017808,2]
[389553158,1759710670253,-701.96,0.00017808,2]
[389553159,1759710670264,-1844.08,0.00017808,2]
[389553160,1759710670274,-500.0,0.00017808,2]
[389553161,1759710670285,-500.0,0.00017808,2]
[389553162,1759710670295,-4754.03,0.00017808,2]
[389553163,1759710670304,-500.0,0.00017808,2]
[389553164,1759710670315,-7407.31,0.00017808,2]
[389553165,1759710670324,-500.0,0.00017808,2]
[389553166,1759710670337,-500.0,0.00017808,2]
[389553167,1759710670348,-583.05,0.00017808,2]
[389553168,1759710670359,-2043.5,0.00017808,2]
[389553169,1759710670370,-500.0,0.00017808,2]
[389553170,1759710670383,-668.25,0.00017808,2]
[389553171,1759710670397,-500.0,0.00017808,2]
[389553172,1759710670408,-1056.44207279,0.00017821,2]
[389553173,1759710670418,-1000.0,0.00017821,2]
[389553174,1759710670428,-1000.0,0.00017821,2]
[389553175,1759710670438,-1000.0,0.00017821,2]
[389553176,1759710670448,-587.33516734,0.00017821,2]
[389553177,1759710670457,-1000.0,0.00017821,2]
[389553178,1759710670467,-1000.0,0.00017821,2]
[389553179,1759710670476,-1000.0,0.00017821,2]
[389553180,1759710670487,-1000.0,0.00017821,2]
[389553181,1759710670497,-1000.0,0.00017821,2]
[389553182,1759710670508,-1000.0,0.00017821,2]
[389553183,1759710670518,-1000.0,0.00017821,2]
[389553184,1759710670528,-1000.0,0.00017821,2]
[389553185,1759710670538,-19292.2273969,0.0001784,2]
[389553186,1759710670548,-151.0,0.0001784,2]
[389553187,1759710670557,-151.0,0.0001784,2]
[389553188,1759710670567,-151.0,0.0001784,2]
[389553189,1759710670576,-160.376868,0.0001784,2]
[389553190,1759710670590,-151.0,0.0001784,2]
[389553191,1759710670601,-151.0,0.0001784,2]
[389553192,1759710670610,-203.900641,0.0001784,2]
[389553193,1759710670620,-172.88,0.00017853,2]
[389553194,1759710670630,-420.0,0.00017855,2]
[389553195,1759710670639,-1500.0,0.00017868,2]
[389553196,1759710670649,-1680.0,0.00017944,2]
[389553197,1759710670659,-51876.57468829,0.00018,2]
[389553198,1759710670669,-5014.0,0.00018,2]
[389553199,1759710670679,-64294.99631888,0.00018,2]
[389553200,1759710670688,-21395.83294621,0.00018,2]
[389553201,1759710670698,-5055.65863386,0.00018,2]
[389553202,1759710670707,-980.0,0.00018021,2]
[389553203,1759710670716,-630.0,0.00018021,2]
[389553204,1759710670726,-2158.0,0.00018021,2]
[389553205,1759710670736,-410.0,0.00018021,2]
[389553206,1759710670745,-433.472,0.00018021,2]
[389553207,1759710670755,-1500.0,0.00018068,2]
[389553208,1759710670764,-1129.55523628,0.00018068,2]
[389553209,1759710670774,-1500.0,0.00018068,2]
[389553210,1759710670788,-1500.0,0.00018068,2]
[389553211,1759710670798,-1500.0,0.00018068,2]
[389553212,1759710670807,-1500.0,0.00018068,2]
[389553213,1759710670816,-1500.0,0.00018068,2]
[389553214,1759710670826,-1500.0,0.00018068,2]
[389553215,1759710670839,-1500.0,0.00018068,2]
[389553216,1759710670849,-1500.0,0.00018068,2]
[389553217,1759710670859,-1500.0,0.00018068,2]
[389553218,1759710670869,-610.68234698,0.00018068,2]
[389553219,1759710670879,-910.57203895,0.00018068,2]
[389553220,1759710670890,-700.84617983,0.00018068,2]
[389553221,1759710670900,-500.87239289,0.00018068,2]
[389553222,1759710670909,-1000.98662326,0.00018068,2]
[389553223,1759710670919,-1500.0,0.00018068,2]
[389553224,1759710670929,-1500.83399808,0.00018068,2]
[389553225,1759710670939,-1500.0,0.00018068,2]
[389553226,1759710670950,-1500.87802451,0.00018068,2]
[389553227,1759710670961,-1500.0,0.00018068,2]
[389553228,1759710670970,-500.0,0.00018082,2]
[389553229,1759710670980,-186.85721511,0.00018082,2]
[389553230,1759710670990,-543.72,0.00018082,2]
[389553231,1759710670999,-151.0,0.00018082,2]
[389553232,1759710671009,-151.0,0.00018082,2]
[389553233,1759710671018,-312.6286503,0.00018082,2]
[389553234,1759710671027,-151.0,0.00018082,2]
[389553235,1759710671036,-500.0,0.00018082,2]
[389553236,1759710671046,-151.0,0.00018082,2]
[389553237,1759710671056,-151.0,0.00018082,2]
[389553238,1759710671066,-151.0,0.00018082,2]
[389553239,1759710671079,-500.0,0.00018082,2]
[389553240,1759710671089,-151.0,0.00018082,2]
[389553241,1759710671100,-151.0,0.00018082,2]
[389553242,1759710671110,-152.92,0.00018082,2]
[389553243,1759710671119,-480.0,0.00018082,2]
[389553244,1759710671128,-500.0,0.00018082,2]
[389553245,1759710671139,-500.0,0.00018082,2]
[389553246,1759710671148,-704.51,0.00018082,2]
[389553247,1759710671158,-500.0,0.00018082,2]
[389553248,1759710671167,-500.0,0.00018082,2]
[389553249,1759710671177,-570.63,0.00018082,2]
[389553250,1759710671186,-829.36,0.00018082,2]
[389553251,1759710671196,-541.15140565,0.00018082,2]
[389553252,1759710671206,-500.0,0.00018082,2]
[389553253,1759710671216,-500.0,0.00018082,2]
[389553254,1759710671225,-1340.02,0.00018082,2]
[389553255,1759710671235,-882.96,0.00018082,2]
[389553256,1759710671244,-221.50269527,0.00018082,2]
[389553257,1759710671254,-500.0,0.00018082,2]
[389553258,1759710671264,-500.0,0.00018082,2]
[389553259,1759710671274,-500.0,0.00018082,2]
[389553260,1759710671284,-500.0,0.00018082,2]
[389553261,1759710671294,-500.0,0.00018082,2]
[389553262,1759710671303,-568.01,0.00018082,2]
[389553263,1759710671313,-706.21,0.00018082,2]
[389553264,1759710671322,-515.97,0.00018082,2]
[389553265,1759710671331,-570.06,0.00018082,2]
[389553266,1759710671341,-505.60666335,0.00018082,2]
[389553267,1759710671351,-500.0,0.00018082,2]
[389553268,1759710671360,-907.79,0.00018082,2]
[389553269,1759710671369,-500.0,0.00018082,2]
[389553270,1759710671379,-565.36760254,0.00018082,2]
[389553271,1759710671388,-500.0,0.00018082,2]
[389553272,1759710671398,-500.0,0.00018082,2]
[389553273,1759710671408,-327.38402587,0.00018082,2]
[389553274,1759710671418,-500.0,0.00018082,2]
[389553275,1759710671427,-500.0,0.00018082,2]
[389553276,1759710671436,-483.99703503,0.00018082,2]
[389553277,1759710671446,-500.0,0.00018082,2]
[389553278,1759710671455,-1189.93,0.00018082,2]
[389553279,1759710671464,-788.71,0.00018082,2]
[389553280,1759710671474,-500.0,0.00018082,2]
[389553281,1759710671483,-634.6,0.00018082,2]
[389553282,1759710671493,-500.0,0.00018082,2]
[389553283,1759710671503,-500.0,0.00018082,2]
[389553284,1759710671512,-569.32,0.00018082,2]
[389553285,1759710671521,-500.0,0.00018082,2]
[389553286,1759710671531,-500.0,0.00018082,2]
[389553287,1759710671541,-500.0,0.00018082,2]
[389553288,1759710671550,-500.0,0.00018082,2]
[389553289,1759710671560,-500.0,0.00018082,2]
[389553290,1759710671569,-1416.88,0.00018082,2]
[389553291,1759710671579,-500.0,0.00018082,2]
[389553292,1759710671588,-500.0,0.00018082,2]
[389553293,1759710671598,-524.03,0.00018082,2]
[389553294,1759710671607,-500.0,0.00018082,2]
[389553295,1759710671617,-500.0,0.00018082,2]
[389553296,1759710671627,-500.0,0.00018082,2]
[389553297,1759710671637,-1492.82,0.00018082,2]
[389553298,1759710671646,-1405.52,0.00018082,2]
[389553299,1759710671656,-3841.45,0.00018082,2]
[389553300,1759710671665,-645.51,0.00018082,2]
[389553301,1759710671675,-500.0,0.00018082,2]
[389553302,1759710671685,-1015.09,0.00018082,2]
[389553303,1759710671697,-500.0,0.00018082,2]
[389553304,1759710671706,-901.06,0.00018082,2]
[389553305,1759710671715,-895.39,0.00018082,2]
[389553306,1759710671724,-500.0,0.00018082,2]
[389553307,1759710671734,-945.02,0.00018082,2]
[389553308,1759710671744,-804.75,0.00018082,2]
[389553309,1759710671754,-1239.33,0.00018082,2]
[389553310,1759710671764,-1437.31,0.00018082,2]
[389553311,1759710671774,-500.0,0.00018082,2]
[389553312,1759710671788,-500.0,0.00018082,2]
[389553313,1759710671798,-3369.67,0.00018082,2]
[389553314,1759710671809,-10794.67,0.00018082,2]
[389553315,1759710671819,-563.2,0.00018082,2]
[389553316,1759710671829,-1718.43,0.00018082,2]
[389553317,1759710671838,-438.05838003,0.00018082,2]
[389553318,1759710671849,-500.0,0.00018082,2]
[389553319,1759710671859,-3482.74,0.00018082,2]
[389553320,1759710671869,-3304.71,0.00018082,2]
[389553321,1759710671879,-2439.53,0.00018082,2]
[389553322,1759710671888,-500.0,0.00018082,2]
[389553323,1759710671897,-1237.3,0.00018082,2]
[389553324,1759710671907,-529.42,0.00018082,2]
[389553325,1759710671916,-643.24,0.00018082,2]
[389553326,1759710671926,-500.0,0.00018082,2]
[389553327,1759710671936,-500.0,0.00018082,2]
[389553328,1759710671945,-500.0,0.00018082,2]
[389553329,1759710671954,-675.1,0.00018082,2]
[389553330,1759710671963,-500.0,0.00018082,2]
[389553331,1759710671972,-500.0,0.00018082,2]
[389553332,1759710671981,-970.08,0.00018082,2]
[389553333,1759710671990,-500.0,0.00018082,2]
[389553334,1759710671999,-500.0,0.00018082,2]
[389553335,1759710672008,-500.0,0.00018082,2]
[389553336,1759710672018,-4225.47,0.00018082,2]
[389553337,1759710672027,-500.0,0.00018082,2]
[389553338,1759710672036,-1256.0,0.00018082,2]
[389553339,1759710672045,-500.0,0.00018082,2]
[389553340,1759710672054,-747.68,0.00018082,2]
[389553341,1759710672064,-1127.29,0.00018082,2]
[389553342,1759710672073,-785.54,0.00018082,2]
[389553343,1759710672084,-1755.26,0.00018082,2]
[389553344,1759710672094,-500.0,0.00018082,2]
[389553345,1759710672103,-500.0,0.00018082,2]
[389553346,1759710672113,-1302.2,0.00018082,2]
[389553347,1759710672123,-791.93,0.00018082,2]
[389553348,1759710672132,-500.0,0.00018082,2]
[389553349,1759710672142,-500.0,0.00018082,2]
[389553350,1759710672152,-500.0,0.00018082,2]
[389553351,1759710672161,-3860.52,0.00018082,2]
[389553352,1759710672171,-500.0,0.00018082,2]
[389553353,1759710672180,-500.0,0.00018082,2]
[389553354,1759710672190,-500.0,0.00018082,2]
[389553355,1759710672199,-500.0,0.00018082,2]
[389553356,1759710672208,-565.09,0.00018082,2]
[389553357,1759710672219,-500.0,0.00018082,2]
[389553358,1759710672228,-500.0,0.00018082,2]
[389553359,1759710672238,-500.0,0.00018082,2]
[389553360,1759710672248,-544.42,0.00018082,2]
[389553361,1759710672258,-568.57,0.00018082,2]
[389553362,1759710672267,-500.0,0.00018082,2]
[389553363,1759710672276,-950.55,0.00018082,2]
[389553364,1759710672286,-7579.73,0.00018082,2]
[389553365,1759710672297,-500.0,0.00018082,2]
[389553366,1759710672308,-2804.59,0.00018082,2]
[389553367,1759710672319,-500.0,0.00018082,2]
[389553368,1759710672329,-878.32,0.00018082,2]
[389553369,1759710672339,-1082.28,0.00018082,2]
[389553370,1759710672349,-2540.00561243,0.00018082,2]
[389553371,1759710672987,-500.0,0.00016438,2]
[389553372,1759710672997,-500.0,0.00016438,2]
[389553373,1759710673006,-500.0,0.00016438,2]
[389553374,1759710673017,-500.0,0.00016473,2]
[389553375,1759710673027,-4004.207157,0.00016712,2]
[389553376,1759710673038,-4004.207157,0.00016986,2]
[389553377,1759710673048,-4004.207157,0.00017,2]
[389553378,1759710673058,-348.0,0.00017238,2]
[389553379,1759710673069,-4004.207158,0.0001726,2]
[389553380,1759710673079,-372.0,0.00017638,2]
[389553381,1759710673090,-396.0,0.00018038,2]
[389553382,1759710673100,-7928.80438757,0.00018082,2]
[389553383,1759710673109,-478.00833046,0.00018082,2]
[389553384,1759710673118,-1383.8,0.00018082,2]
[389553385,1759710673128,-500.0,0.00018082,2]
[389553386,1759710673137,-580.45,0.00018082,2]
[389553387,1759710673146,-500.0,0.00018082,2]
[389553388,1759710673155,-805.48,0.00018082,2]
[389553389,1759710673164,-467.05,0.00018082,2]
[389553390,1759710673173,-3339.82,0.00018082,2]
[389553391,1759710673182,-701.96,0.00018082,2]
[389553392,1759710673191,-1844.08,0.00018082,2]
[389553393,1759710673201,-500.0,0.00018082,2]
[389553394,1759710673211,-500.0,0.00018082,2]
[389553395,1759710673220,-4754.03,0.00018082,2]
[389553396,1759710673230,-590.7,0.00018082,2]
[389553397,1759710673239,-3623.05235606,0.00018082,2]
[389553398,1759710674635,202.48,0.00028767,120]
[389553400,1759710690746,200.0,0.00024503,120]
[389553401,1759710754122,500.0,0.00028767,120]
[389553402,1759710789710,321.591,0.00028767,120]
[389553403,1759710903646,269.739156,0.00015575,2]
[389553404,1759710930880,200.0,0.00026093,120]
[389553405,1759711050885,200.0,0.00028307,120]
[389553406,1759711170731,200.0,0.00027047,120]
[389553408,1759711235111,500.0,0.00027397,120]
[389553409,1759711253420,189.244333,0.00015338,2]
[389553411,1759711290757,200.0,0.00026143,120]
[389553413,1759711350742,200.0,0.00028575,120]
[389553414,1759711383607,417.15472785,0.00025,30]
[389553416,1759711437786,914.0,0.00031818,60]
[389553419,1759711564507,164825.5923269,0.00031818,60]
[389553433,1759711779959,3097.0,0.00028767,120]
[389553481,1759711832738,-801.15340946,0.00016236,2]
[389553483,1759711832749,-398.84659054,0.00016236,2]
[389553485,1759711832758,-300.0,0.00016236,2]
[389553487,1759711832767,-300.0,0.00016236,2]
[389553489,1759711832776,-300.0,0.00016236,2]
[389553491,1759711832785,-300.0,0.00016236,2]
[389553493,1759711832793,-300.0,0.00016236,2]
[389553495,1759711832802,-1200.0,0.00016236,2]
[389553497,1759711832812,-300.0,0.00016237,2]
[389553499,1759711832821,-8846.37915688,0.00016238,2]
[389553501,1759711832830,-500.0,0.00016325,2]
[389553503,1759711832839,-500.0,0.00016325,2]
[389553505,1759711832848,-500.0,0.00016325,2]
[389553507,1759711832857,-500.0,0.00016325,2]
[389553509,1759711832866,-500.0,0.00016325,2]
[389553511,1759711832875,-500.0,0.00016325,2]
[389553514,1759711832884,-500.0,0.00016325,2]
[389553516,1759711832894,-500.0,0.00016325,2]
[389553518,1759711832903,-500.0,0.00016325,2]
[389553520,1759711832913,-601.04812964,0.00016325,2]
[389553522,1759711832922,-500.0,0.00016325,2]
[389553524,1759711832931,-500.0,0.00016325,2]
[389553526,1759711832940,-500.0,0.00016325,2]
[389553528,1759711832949,-500.0,0.00016325,2]
[389553530,1759711832959,-628.05,0.00016328,3]
[389553532,1759711832967,-314.03,0.00016328,3]
[389553533,1759711832976,-157.01,0.00016328,3]
[389553535,1759711832986,-471.07,0.00016328,3]
[389553537,1759711832996,-1066.83,0.00016328,3]
[389553539,1759711833006,-533.41,0.00016328,3]
[389553541,1759711833015,-151.0,0.00016328,2]
[389553543,1759711833024,-151.0,0.00016328,2]
[389553545,1759711833033,-151.0,0.00016328,2]
[389553547,1759711833043,-97.76471905,0.00016328,2]
[389553552,1759711833078,-500.0,0.00016325,2]
[389553554,1759711833087,-500.0,0.00016325,2]
[389553556,1759711833097,-53.23528095,0.00016328,2]
[389553558,1759711833106,-151.0,0.00016328,2]
[389553560,1759711833115,-151.0,0.00016328,2]
[389553562,1759711833124,-151.0,0.00016328,2]
[389553564,1759711833133,-151.0,0.00016328,2]
[389553566,1759711833143,-151.0,0.00016328,2]
[389553568,1759711833152,-151.0,0.00016328,2]
[389553569,1759711833161,-151.0,0.00016328,2]
[389553571,1759711833170,-97.75923641,0.00016328,2]
[389553573,1759711833182,-53.24076359,0.00016328,2]
[389553575,1759711833191,-151.0,0.00016328,2]
[389553577,1759711833200,-151.0,0.00016328,2]
[389553579,1759711833209,-151.0,0.00016328,2]
[389553581,1759711833218,-151.0,0.00016328,2]
[389553583,1759711833227,-151.0,0.00016328,2]
[389553585,1759711833237,-151.0,0.00016328,2]
[389553587,1759711833246,-14.32923641,0.00016328,2]
[389553655,1759711838648,-500.0,0.00016325,2]
[389553656,1759711838657,-500.0,0.00016325,2]
[389553657,1759711838667,-500.0,0.00016325,2]
[389553658,1759711838676,-266.71,0.00016328,3]
[389553659,1759711838685,-136.67076359,0.00016328,2]
[389553660,1759711838696,-153.24575623,0.00016328,2]
[389553661,1759711838706,-500.0,0.00016336,2]
[389553662,1759711838716,-205.11188296,0.00016337,2]
[389553663,1759711838726,-371.84367057,0.00016337,2]
[389553664,1759711838735,-9235.41792665,0.00016338,2]
[389553665,1759711838747,-360764.58207335,0.00016338,2]
[389553666,1759711838757,-500.0,0.00016338,2]
[389553667,1759711838781,-500.0,0.00016438,2]
[389553668,1759711838791,-473.61221983,0.00016438,2]
[389553669,1759711838801,-500.0,0.00016438,2]
[389553670,1759711838812,-500.0,0.00016438,2]
[389553671,1759711838822,-500.0,0.00016438,2]
[389553672,1759711838832,-500.0,0.00016438,2]
[389553673,1759711838842,-500.0,0.00016438,2]
[389553674,1759711838852,-500.0,0.00016438,2]
[389553675,1759711838862,-500.0,0.00016438,2]
[389553676,1759711838871,-367.07245527,0.00016438,2]
[389553677,1759711838881,-520.0,0.00016438,3]
[389553678,1759711838890,-500.0,0.00016438,2]
[389553679,1759711838900,-300.0,0.00016438,2]
[389553680,1759711838909,-500.0,0.00016438,2]
[389553681,1759711838919,-886.49,0.00016438,2]
[389553682,1759711838929,-500.0,0.00016438,2]
[389553683,1759711838938,-500.0,0.00016438,2]
[389553684,1759711838947,-500.0,0.00016438,2]
[389553685,1759711838957,-500.0,0.00016438,2]
[389553686,1759711838966,-500.0,0.00016438,2]
[389553687,1759711838976,-500.0,0.00016438,2]
[389553688,1759711838985,-500.0,0.00016438,2]
[389553689,1759711838994,-517.19,0.00016438,2]
[389553690,1759711839004,-500.0,0.00016438,2]
[389553691,1759711839013,-500.0,0.00016438,2]
[389553692,1759711839023,-500.0,0.00016438,2]
[389553693,1759711839033,-500.0,0.00016438,2]
[389553694,1759711839042,-500.0,0.00016438,2]
[389553695,1759711839052,-500.0,0.00016438,2]
[389553696,1759711839061,-500.0,0.00016438,2]
[389553697,1759711839071,-484.91474636,0.00016438,2]
[389553698,1759711839081,-500.0,0.00016438,2]
[389553699,1759711839091,-500.0,0.00016438,2]
[389553700,1759711839101,-500.0,0.00016438,2]
[389553701,1759711839110,-500.0,0.00016438,2]
[389553702,1759711839120,-500.0,0.00016438,2]
[389553703,1759711839129,-500.0,0.00016438,2]
[389553704,1759711839139,-500.0,0.00016438,2]
[389553705,1759711839149,-500.0,0.00016438,2]
[389553706,1759711839158,-500.0,0.00016438,2]
[389553707,1759711839167,-500.0,0.00016438,2]
[389553708,1759711839176,-500.0,0.00016438,2]
[389553709,1759711839185,-500.0,0.00016438,2]
[389553710,1759711839195,-500.0,0.00016438,2]
[389553711,1759711839205,-500.0,0.00016438,2]
[389553712,1759711839214,-500.0,0.00016438,2]
[389553713,1759711839224,-500.0,0.00016438,2]
[389553714,1759711839233,-500.0,0.00016438,2]
[389553715,1759711839242,-500.0,0.00016438,2]
[389553716,1759711839252,-500.0,0.00016438,2]
[389553717,1759711839261,-500.0,0.00016438,2]
[389553718,1759711839271,-500.0,0.00016438,2]
[389553719,1759711839281,-500.0,0.00016438,2]
[389553720,1759711839290,-500.0,0.00016438,2]
[389553721,1759711839300,-500.0,0.00016438,2]
[389553722,1759711839311,-200.97500331,0.00016438,2]
[389553723,1759711839320,-500.0,0.00016438,2]
[389553724,1759711839329,-500.0,0.00016438,2]
[389553725,1759711839339,-500.0,0.00016438,2]
[389553726,1759711839349,-500.0,0.00016438,2]
[389553727,1759711839358,-500.0,0.00016438,2]
[389553728,1759711839368,-500.0,0.00016438,2]
[389553729,1759711839377,-500.0,0.00016438,2]
[389553730,1759711839391,-500.0,0.00016438,2]
[389553731,1759711839401,-500.0,0.00016438,2]
[389553732,1759711839410,-500.0,0.00016438,2]
[389553733,1759711839420,-500.0,0.00016438,2]
[389553734,1759711839429,-538.99,0.00016438,2]
[389553735,1759711839439,-500.0,0.00016438,2]
[389553736,1759711839449,-500.0,0.00016438,2]
[389553737,1759711839458,-500.0,0.00016438,2]
[389553738,1759711839468,-615.73,0.00016438,2]
[389553739,1759711839477,-500.0,0.00016438,2]
[389553740,1759711839486,-500.0,0.00016438,2]